[Event "E World Cup 2023"]
[Site "Chess.com"]
[Date "2023.08.22"]
[Round "8"]
[White "Abbasov, Nijat"]
[Black "Caruana, Fabiano"]
[Result "1-0"]
[WhiteElo "2646"]
[BlackElo "2782"]
[ECO "E05"]
[EventDate "2023.??.??"]
[Annotator "rafael"]
[PlyCount "51"]
[Beauty "8247008301065"]
[EventType "team-tourn"]
[EventCountry "FID"]
[TimeControl "40/5400+30:1800+30"]

{[%evp 0,51,25,15,30,17,27,-7,-11,-25,8,-7,14,5,14,0,3,-11,-14,-14,1,-5,0,0,14,-13,11,2,11,5,9,-14,2,7,5,11,10,24,28,25,51,28,17,11,67,46,36,-6,14,37,32,36,39,264]} 
1.d4 Nf6 2.Nf3 d5 3.c4 e6 4.g3 Be7 5.Bg2 O-O 6.O-O dxc4 7.Qc2 a6 8.a4 Bd7 9.Qxc4 Bc6 10.Bg5 Nbd7 11.Nc3 h6 {This is one of the main lines of the Catalan Opening. The next move is a small surprise, as it is much less common than taking the knight on f6.} 12.Bf4 ( 12.Bxf6 {is the most popular move and was played a couple of times against Caruana in 2023.} ) 12...Bd6 13.Qd3 {Played only once, in a correspondence game.} ( 13.Bxd6 cxd6 {with an equal position.} ) ( 13.Bd2 {is also possible.} ) 13...Bxf4 14.gxf4 a5 {A novelty. Fixing the pawn structure this way is typical in the Catalan. Black has many alternatives:} ( 14...Qe7 15.e4 Rad8 16.Qe3 {with some pressure for White in Kornyushin-Oren, email 2018.} ) ( 14...Nd5 {is interesting, to exchange the knights and give Black some relief.} 15.Nxd5 Bxd5 16.e4 Bc6 17.Qe3 Nb6 {with chances for both sides.} ) ( 14...b5 {is also interesting, a dynamic move to gain space on the queenside. If White takes the pawn, the position simplifies after:} 15.axb5 axb5 16.Nxb5 Rxa1 17.Rxa1 Qb8 {The b2-pawn will be captured, with a likely draw.} ) 15.Kh1 Bxf3 $6 {[%c_effect f3;square;f3;type;Inaccuracy;persistent;true] I don't think this capture is necessary.} ( 15...Nd5 ) ( 15...Qe7 ) 16.Bxf3 c6 {With a good pawn structure and the g-file ready to be used, it's clear that White's position is more pleasant.} 17.Rg1 ( 17.e4 $1 {[%c_effect e4;square;e4;type;GreatFind;persistent;true] is more accurate, avoiding ...Nd5.} ) 17...Kh8 ( 17...Nd5 $1 {[%c_effect d5;square;d5;type;GreatFind;persistent;true]} 18.e3 N7f6 {Followed by Kh8-Rg8, and it's harder for White to attack since the e4-e5 advance is impossible.} ) 18.e4 $1 {[%c_effect e4;square;e4;type;GreatFind;persistent;true]} 18...Qe7 19.Rg3 ( 19.e5 $1 {[%c_effect e5;square;e5;type;GreatFind;persistent;true] is even stronger. White already has a clear advantage, for instance:} 19...Nd5 $6 {[%c_effect d5;square;d5;type;Inaccuracy;persistent;true]} 20.Bxd5 cxd5 21.f5 {with a strong attack.} ) 19...Rad8 20.Rag1 Rg8 21.e5 Nh7 ( 21...Nd5 $2 {[%c_effect d5;square;d5;type;Mistake;persistent;true] is a more natural square, but a mistake.} 22.Nxd5 ( 22.Bxd5 {is also good.} 22...cxd5 ( 22...exd5 23.f5 ) 23.Nb5 {with a winning positional advantage.} ) 22...cxd5 23.f5 {with an overwhelming advantage.} ) 22.Qe3 $6 {[%c_effect e3;square;e3;type;Inaccuracy;persistent;true] Not very convincing.} ( 22.Ne4 {is the most natural move:} 22...Nb6 23.f5 $1 {[%c_effect f5;square;f5;type;GreatFind;persistent;true]} ( 23.Nd6 Nc8 {doesn't give much to White.} ) 23...exf5 24.Nd6 {Now Black has to sacrifice the exchange.} 24...Rxd6 25.exd6 Qe6 $1 {[%c_effect e6;square;e6;type;GreatFind;persistent;true] The game becomes double-edged: it seems Black has decent play.} ( 25...Qxd6 {is bad:} 26.Qxf5 Nf6 27.Qxa5 Qxd4 28.Qa7 $1 {[%c_effect a7;square;a7;type;GreatFind;persistent;true] with a big advantage for White.} ) ) ( 22.Ne2 {is a difficult move to find, and the computer's suggestion. The plan is to follow up with 23.Qc3 attacking the a-pawn.} 22...Nb6 23.f5 $1 {[%c_effect f5;square;f5;type;GreatFind;persistent;true] Now this move is possible since the knight cannot take on e5. White has the advantage.} ) 22...Nb6 ( 22...f5 $1 {[%c_effect f5;square;f5;type;GreatFind;persistent;true] The advance of the f-pawn is an important resource for Black. It gains space, and if White captures en passant, his structure is weakened. Black's knight would also be able to reach d5 more efficiently.} 23.Bd1 ( 23.exf6 Ndxf6 {with a good position for Black.} ( 23...Nhxf6 ) ) 23...Nb6 24.Bb3 Nf8 {with an equal position.} ) 23.Be4 Qb4 $4 {[%c_effect b4;square;b4;type;Blunder;persistent;true] A blunder that loses the game immediately.} ( 23...g6 {was suggested by Abasov in the post-game interview.} ) ( 23...f5 $1 {[%c_effect f5;square;f5;type;GreatFind;persistent;true] is the most accurate. Black is not worse.} 24.exf6 ( 24.Bb1 Nf8 {with a solid position.} ) 24...Nxf6 25.Bb1 Qd6 {with counterplay.} ) 24.Bxh7 $1 {[%c_effect h7;square;h7;type;GreatFind;persistent;true]} 24...Kxh7 25.Ne4 {There are too many pieces on the attack.} 25...Qe7 ( 25...Qxd4 26.Ng5+ ( 26.Nf6+ {also wins.} ) 26...Kh8 ( 26...hxg5 27.Rh3+ Kg6 28.Rxg5# ) 27.Nxf7+ ) 26.f5 {The attack cannot be stopped. A shocking defeat for Caruana and another great game in Abasov's memorable tournament.} ( 26.f5 exf5 ( 26...Nd5 27.f6 Nxe3 28.Rxg7+ Rxg7 29.Rxg7+ Kh8 30.fxe7 {winning.} ) 27.Nf6+ $1 {[%c_effect f6;square;f6;type;GreatFind;persistent;true]} 27...gxf6 ( 27...Kh8 28.Qxh6+ gxh6 29.Rxg8+ Rxg8 30.Rxg8# ) 28.Qxh6+ Kxh6 29.Rh3# ) 1-0

[Event "Champions Chess Tour AI Cup 2023"]
[Site "Chess.com"]
[Date "2023.09.25"]
[Round "1"]
[White "Firouzja, Alireza"]
[Black "Vachier Lagrave, Maxime"]
[Result "0-1"]
[WhiteElo "2815"]
[BlackElo "2778"]
[ECO "B97"]
[EventDate "2023.??.??"]
[Annotator "rafael"]
[PlyCount "80"]
[Beauty "7629631689258"]
[EventType "team-tourn"]
[TimeControl "900+3"]

{[%evp 0,80,26,18,44,53,50,50,46,30,32,33,46,46,38,18,25,11,19,3,3,3,3,-3,-3,-5,24,-18,-23,-25,-17,-16,28,-7,42,32,36,31,11,14,0,16,24,18,29,29,47,47,32,28,35,17,17,0,0,0,-15,0,0,-61,-64,-84,-33,-33,29,-48,-88,-108,-141,-114,-70,-83,-79,-124,-138,-138,-138,-170,-103,-181,-160,-29993,-29994]} 
1.e4 c5 2.Nf3 d6 3.d4 cxd4 4.Nxd4 Nf6 5.Nc3 a6 6.Bg5 e6 7.f4 Qb6 {The Poisoned Pawn Variation of the Najdorf was Fischer's and Kasparov's favorite. Computers are not capable of proving an advantage for White, but it takes courage and a good memory to play this line with Black, qualities that Vachier-Lagrave certainly isn't lacking.} 8.Nb3 {What should we call this: an Anti-Poisoned Pawn Variation $2} ( 8.Qd2 Qxb2 {has been tested in thousands of games, including one victory for Spassky against Fischer in the Match of the Century.} ) 8...Nbd7 9.Qe2 {The development of the white queen on e2 is a relatively recent invention, and many players now prefer this square and not the old but also pleasant f3.} 9...Qc7 10.O-O-O b5 11.a3 Be7 12.Kb1 {All these moves are very natural for both sides. Being the greatest living expert on the Najdorf, Vachier-Lagrave should have all this very well prepared.} 12...Rb8 $1 {[%c_effect b8;square;b8;type;GreatFind;persistent;true] Preparing the typical pawn break with b5-b4.} ( 12...Bb7 {The Frenchman chose this move last year, but White gained a dangerous initiative after} 13.Qe1 Rc8 14.Bd3 Nc5 15.Nxc5 dxc5 16.e5 {in Maghsoodloo-Vachier Lagrave, EU-Cup Mayrhofen 2022.} ) 13.Qe1 $1 {[%c_effect e1;square;e1;type;GreatFind;persistent;true] Excellent prophylaxis.} ( 13.g4 {is not convincing:} 13...b4 14.axb4 Rxb4 {with good counterplay for Black.} ) 13...Bb7 ( 13...b4 $2 {[%c_effect b4;square;b4;type;Mistake;persistent;true] This move doesn't work now:} 14.axb4 Rxb4 15.Nd5 $1 {[%c_effect d5;square;d5;type;GreatFind;persistent;true] The role of the queen on e1 becomes clear.} ) 14.Bd3 h6 15.Bh4 Nc5 {All this has been played before. The theory of the Najdorf goes very deep, especially in the 6.Bg5 variation.} 16.f5 {An interesting move, played in a correspondence game.} ( 16.Nxc5 {doesn't give White much:} 16...dxc5 17.e5 Nd5 18.Nxd5 Bxd5 19.Bxe7 Qxe7 20.Be4 b4 {with good counterplay for Black in Nepomniachtchi-Giri, Carlsen Inv KO (rapid) 2021.} ( 20...Bxe4 {is also possible:} 21.Qxe4 O-O 22.Rd6 b4 ) ) 16...exf5 ( 16...Nxd3 17.Rxd3 O-O {is the continuation favored by the computer. No wonder it was played in the email game mentioned before. This game, unsurprisingly, ended in a draw: De Andres Senra-Boudey, EU-ch email 2020.} ) 17.Nxc5 ( 17.exf5 O-O 18.Nxc5 dxc5 {transposes to the game.} ) 17...dxc5 18.exf5 {White has an interesting alternative:} ( 18.Nd5 $5 {[%c_effect d5;square;d5;type;Interesting;persistent;true] Black needs to walk a tightrope, but eventually escapes.} 18...Bxd5 19.exd5 O-O 20.d6 $1 {[%c_effect d6;square;d6;type;GreatFind;persistent;true]} 20...Bxd6 ( 20...Qxd6 $2 {[%c_effect d6;square;d6;type;Mistake;persistent;true] loses to} 21.Bxf5 Qc7 22.Bg3 {picking up the b8-rook.} ) 21.Bxf6 gxf6 22.Qh4 Bf4 $1 {[%c_effect f4;square;f4;type;GreatFind;persistent;true] although the position looks dangerous, the machine shows that Black can hold.} ) 18...O-O 19.Bxb5 $1 {[%c_effect b5;square;b5;type;GreatFind;persistent;true] Both players are up to the challenge.} ( 19.Bg3 {leaves White empty-handed after} 19...Bd6 ) 19...Bxg2 ( 19...axb5 {is a good alternative, although very hard to find without the computer's help.} 20.Bg3 Qc6 21.Qxe7 ( 21.Bxb8 $2 {[%c_effect b8;square;b8;type;Mistake;persistent;true] The point is that this obvious move gives Black a winning initiative after} 21...Re8 $1 {[%c_effect e8;square;e8;type;GreatFind;persistent;true] for instance:} 22.Bg3 b4 {The attack more than compensates for the exchange.} ) 21...Rfe8 22.Qd6 Rbc8 {The activity of the pieces compensates for the missing pawn.} ) 20.Rg1 axb5 21.Rxg2 b4 22.Ne4 $1 {[%c_effect e4;square;e4;type;GreatFind;persistent;true] The best chance.} ( 22.Bxf6 Bxf6 23.Nd5 Qd6 {offers no advantage for White.} ) 22...Nxe4 ( 22...Qe5 {is also possible:} 23.Nxf6+ Bxf6 24.Qxe5 Bxe5 {with a roughly equal position.} ) 23.Qxe4 Bxh4 24.Qxh4 Kh7 ( 24...f6 {is possible, avoiding the advance of White's pawn. But after} 25.a4 {it's still possible for the first player to fight for a win.} ) 25.f6 g6 26.Rd3 {Preparing the queen sacrifice on h6. The position looks really dangerous, but Black can survive with a series of forced moves.} 26...Qe5 $1 {[%c_effect e5;square;e5;type;GreatFind;persistent;true]} 27.Rh3 ( 27.Rxg6 {is not enough for the advantage:} 27...Kxg6 ( 27...fxg6 $2 {[%c_effect g6;square;g6;type;Mistake;persistent;true]} 28.Rd7+ ) 28.Rg3+ Qxg3 ( 28...Qg5 {is also possible.} ) ( 28...Kf5 $2 {[%c_effect f5;square;f5;type;Mistake;persistent;true]} 29.Rf3+ Ke6 ( 29...Kg6 30.Qg4+ Qg5 31.Qe4+ Kh5 32.Rh3+ {followed by mate.} ) 30.Qh3+ Kd6 31.Rd3+ Kc6 32.Qd7+ Kb6 33.Rd6+ {and White wins.} ) 29.Qxg3+ Kxf6 {with a likely draw.} ) 27...h5 28.Rg5 Qe2 $1 {[%c_effect e2;square;e2;type;GreatFind;persistent;true]} 29.Qf4 $2 {[%c_effect f4;square;f4;type;Mistake;persistent;true] Probably frustrated at having come so close to mate, Firouzja makes a serious mistake.} ( 29.Rxh5+ {finishes the game with a pretty draw by perpetual check:} 29...gxh5 30.Qg5 Qf1+ $1 {[%c_effect f1;square;f1;type;GreatFind;persistent;true]} 31.Ka2 Qc4+ 32.Kb1 Qf1+ ) 29...Qe1+ $1 {[%c_effect e1;square;e1;type;GreatFind;persistent;true]} 30.Ka2 ( 30.Qc1 Rfe8 {is also very bad for White. Usually when an attack goes wrong, the endgame is bad because you create weaknesses trying to attack.} ) 30...Qe6+ 31.Rb3 c4 $2 {[%c_effect c4;square;c4;type;Mistake;persistent;true]} ( {The simple} 31...bxa3 {opens lines to decisively attack White's king.} ) 32.Rbg3 $2 {[%c_effect g3;square;g3;type;Mistake;persistent;true] White is back in the game after} ( 32.Rxb4 Rxb4 33.axb4 c3+ 34.Kb1 {it seems Black has no more than a draw.} ) ( 32.Re3 {is also playable:} 32...b3+ 33.cxb3 cxb3+ 34.Kb1 ) 32...b3+ 33.cxb3 cxb3+ 34.Kb1 {Now the queen can move forward on the e-file, and the game is over.} 34...Qe1+ ( 34...Qe2 {is also good.} ) 35.Qc1 Rfe8 36.Rc3 Qe4+ 37.Ka1 Rbc8 $1 {[%c_effect c8;square;c8;type;GreatFind;persistent;true] Using the theme of the back-rank mate.} 38.Rg1 ( 38.Rxc8 Rxc8 39.Qxc8 Qe1+ ) 38...Qd4 ( 38...Rxc3 39.Qxc3 Qd5 {followed by ...Re2 and a decisive advantage.} ) 39.Rgg3 ( 39.Qd1 {is the only chance.} ) 39...Rxc3 40.bxc3 ( 40.Rxc3 Qf2 ) 40...Qf2 {Threatening mate on a2 and also a rook invasion on e1.} 0-1

[Event "Champions Chess Tour AI Cup 2023"]
[Site "Chess.com"]
[Date "2023.09.26"]
[Round "51"]
[White "Nakamura, Hikaru"]
[Black "Giri, Anish"]
[Result "0-1"]
[WhiteElo "2786"]
[BlackElo "2700"]
[ECO "A03"]
[EventDate "2023.??.??"]
[Annotator "rafael"]
[PlyCount "58"]
[Beauty "8250363770896"]
[EventType "team-tourn"]
[TimeControl "900+3"]

1.b3 d5 2.Bb2 c5 3.e3 Nf6 4.f4 $6 {[%c_effect f4;square;f4;type;Inaccuracy;persistent;true] At the risk of earning the enmity of Dutch Defense supporters, I have to say that I'm not a big fan of advancing the f-pawn in the opening.} ( 4.Nf3 {leads to a Queen's Indian with a tempo up for White.} ) 4...g6 $1 {[%c_effect g6;square;g6;type;GreatFind;persistent;true] This is the best development to demonstrate the problems of White's opening.} 5.Bb5+ Bd7 6.Bxd7+ Qxd7 7.Nf3 Bg7 8.Qe2 O-O 9.d3 $6 {[%c_effect d3;square;d3;type;Inaccuracy;persistent;true] This move makes things worse.} ( 9.O-O Nc6 10.Ne5 {with only a slight advantage for Black.} ) 9...Nc6 10.Nbd2 d4 $1 {[%c_effect d4;square;d4;type;GreatFind;persistent;true]} 11.e4 b5 {Something went very wrong with White's play. Black has a clear advantage. The b2-bishop doesn't make a good impression.} 12.O-O Ng4 $1 {[%c_effect g4;square;g4;type;GreatFind;persistent;true] The knight heads to the delicious e3-square.} 13.Rfe1 Bh6 14.g3 e5 $1 {[%c_effect e5;square;e5;type;GreatFind;persistent;true]} 15.fxe5 ( 15.f5 {is the best chance to create some confusion, although Black is much better after} 15...gxf5 16.Nh4 fxe4 17.dxe4 Ne3 ) 15...Rae8 {A natural move, bringing the rook into the game. The computer indicates an intricate winning method with 15...f5.} ( 15...f5 $1 {[%c_effect f5;square;f5;type;GreatFind;persistent;true] opens the kingside and grants Black a winning attack.} 16.exf5 ( 16.exf6 Rxf6 {followed by ...Raf8} ) 16...Be3+ 17.Kg2 Bxd2 18.Nxd2 ( 18.Qxd2 Qxf5 {the f-file proves decisive.} ) 18...Ncxe5 {with a total destruction of White's position.} ) 16.a4 a6 {A solid move. There's a more incisive option available.} ( 16...Be3+ 17.Kg2 Ncxe5 18.axb5 ( 18.Nxe5 Rxe5 19.axb5 Rh5 $1 {[%c_effect h5;square;h5;type;GreatFind;persistent;true]} 20.Nf1 f5 $1 {[%c_effect f5;square;f5;type;GreatFind;keyPressed;undefined;persistent;true] All of Black's pieces take part in the attack.} ) 18...Bxd2 19.Nxe5 Rxe5 $1 {[%c_effect e5;square;e5;type;GreatFind;persistent;true]} 20.Qxd2 Rh5 21.h4 f5 {The bishop on b2 is the symbol of White's problems.} ) 17.axb5 axb5 18.Bc1 ( 18.Ba3 {is a better chance.} ) 18...Be3+ 19.Kg2 Nf2 ( 19...f5 $1 {[%c_effect f5;square;f5;type;GreatFind;persistent;true] is again a sophisticated path to victory.} 20.exf5 ( 20.exf6 Rxf6 21.Rf1 Nb4 ) 20...gxf5 $1 {[%c_effect f5;square;f5;type;GreatFind;persistent;true] a counterintuitive move, closing the f-file but taking the e4-square away from the knight. The queen comes to d5 sooner or later to decide the game.} ) ( 19...Ncxe5 {is also good.} ) 20.Ng1 $2 {[%c_effect g1;square;g1;type;Mistake;persistent;true]} ( 20.Nf1 $1 {[%c_effect f1;square;f1;type;GreatFind;persistent;true] is the only chance. Needless to say, it's scary to let the black queen go to h3.} 20...Qh3+ 21.Kg1 Nxd3+ 22.Nxe3 Nxe1 23.Ng5 $1 {[%c_effect g5;square;g5;type;GreatFind;persistent;true] Black needs to play some accurate moves now.} 23...Qh5 $1 {[%c_effect h5;square;h5;type;GreatFind;persistent;true]} 24.Ng4 Kg7 $1 {[%c_effect g7;square;g7;type;GreatFind;persistent;true]} 25.Nxh7 $1 {[%c_effect h7;square;h7;type;GreatFind;persistent;true]} 25...d3 $1 {[%c_effect d3;square;d3;type;GreatFind;persistent;true]} ( 25...Qxh7 $2 {[%c_effect h7;square;h7;type;Mistake;persistent;true]} 26.Bh6+ ) 26.Qxe1 ( 26.cxd3 Nd4 {wins.} ) 26...Qxg4 27.Nf6 Qf3 28.Qd2 Nxe5 29.Nxe8+ Rxe8 30.Bb2 dxc2 31.Qxc2 {Maybe I went too far in this line, but one gets carried away analyzing crazy variations sometimes. Black has a clear advantage, but many things could happen before this position arrives on the board.} ) 20...Nxe5 21.Nf1 Bxc1 22.Raxc1 {Now Giri executes a brilliant combination to wrap-up the game.} 22...f5 $3 {[%c_effect f5;square;f5;type;Brilliant;persistent;true] Everything is working for Black after this sacrifice.} 23.Qxf2 fxe4 24.Qd2 ( 24.Qe2 {doesn't change anything. Black wins by either taking the pawn on d3 or advancing his pawn to e3.} 24...e3 ( 24...exd3 25.cxd3 Ng4 {wins as well.} ) 25.Nxe3 dxe3 26.Qxe3 {A possible winning line follows:} 26...Ng4 27.Qxc5 Qb7+ 28.Kh3 Rxe1 29.Rxe1 Nf2+ 30.Kh4 Qd7 {White's king will soon perish.} ) 24...e3 25.Nxe3 Qc6+ 26.Kh3 dxe3 27.Rxe3 Qe6+ 28.Kg2 Qd5+ {A nice queen triangulation.} 29.Kh3 ( 29.Re4 Nxd3 $1 {[%c_effect d3;square;d3;type;GreatFind;persistent;true]} 30.cxd3 Rxe4 {wins material.} ) 29...Ng4 $1 {[%c_effect g4;square;g4;type;GreatFind;persistent;true]} ( 29...Ng4 30.Rxe8 Qh5+ 31.Kg2 Qxh2# ) 0-1